Cogmind - Beta 13 @@@ ROGUE MODE // 2024.04.07 @ 14:26:28 Player: KHORE-n Result: Destroyed by G-34 Mercenary with Small Laser Performance ------------- Evolutions (0) 0 Regions Visited (1) 200 Robots Destroyed (25) 125 Value Destroyed (481) 481 Prototype IDs (0) 0 Alien Tech Used (0) 0 Bonus (0) 0 TOTAL SCORE: 806 Bonus ------- None Cogmind --------- Core Integrity 0/250 Matter 3/300 Energy 100/100 System Corruption 1% Temperature Cool (6) Movement Walking (190) Ox1 Location -10/Materials Parts ------- > --- POWER (1) -------- (None) > --- PROPULSION (2) --- Aluminum Leg > --- UTILITY (2) ------ Large Storage Unit Signal Interpreter > --- WEAPON (2) ------- (None) > --- INVENTORY (15) --- Ion Engine Ion Engine Light Ion Engine Light Ion Engine Aluminum Leg Aluminum Leg Aluminum Leg Heat Sink Assault Rifle Assault Rifle Light Assault Rifle Light Cannon Grenade Launcher Datajack Datajack Peak State ------------ > --- POWER ------------ Light Nuclear Core > --- PROPULSION ------- Aluminum Leg Aluminum Leg > --- UTILITY ---------- Small Storage Unit > --- WEAPON ----------- Assault Rifle Assault Rifle > --- INVENTORY -------- Ion Engine Grenade Launcher [Rating: 8] Favorites ----------- Power Ion Engine Engine Ion Engine Power Core Light Nuclear Core Propulsion Aluminum Leg Leg Aluminum Leg Utility Large Storage Unit Device Structural Scanner Storage Large Storage Unit Processor Signal Interpreter Weapon Assault Rifle Ballistic Gun Assault Rifle Launcher Grenade Launcher Special Melee Weapon Datajack Build | -11 -10 ------- Run | Yrd Mat Slots Evolved . | . . Power . | . . Propulsion . | . . Utility . | . . Weapon . | . . Parts Attached 36 | 6 30 Power 6 | 1 5 Engine 5 | 1 4 Core 1 | . 1 Reactor . | . . Propulsion 8 | 2 6 Treads . | . . Leg 8 | 2 6 Wheel . | . . Hover . | . . Flight . | . . Utility 5 | 1 4 Device 1 | . 1 Storage 2 | 1 1 Processor 2 | . 2 Hackware . | . . Protection . | . . Artifact . | . . Weapon 17 | 2 15 Energy Gun . | . . Energy Cannon . | . . Ballistic Gun 11 | 2 9 Ballistic Cannon . | . . Launcher 2 | . 2 Special Weapon . | . . Impact Weapon . | . . Slashing Weapon . | . . Piercing Weapon . | . . Special Melee Weapon 4 | . 4 Unidentified Prototypes . | . . Parts Lost 8 | . 8 Power 2 | . 2 Propulsion 1 | . 1 Utility 2 | . 2 Weapon 3 | . 3 Highest Loss Streak 3 | . 3 To Critical Strikes . | . . Average Slot Usage (%) 86 | . 86 Engine 10 | . 10 Core 1 | . 1 Leg 24 | . 24 Storage 14 | . 14 Processor 9 | . 9 Ballistic Gun 23 | . 23 Special Melee Weapon 1 | . 1 Naked Turns . | . . Heaviest Build 29 | 14 29 Greatest Support 20 | 20 20 Greatest Overweight (x) 2 | . 2 Average Overweight (x) . | . . Largest Inventory Capacity 15 | 8 15 Average Capacity 13 | 7 13 Most Carried 15 | 2 15 Average Carried 6 | . 7 Final Capacity 15 | 8 15 Final Carried 15 | . 15 Class Distribution -------------------- 61% | Mutant 38% | Scavenger-Mutant Dominant Class ---------------- Mutant | -10/Materials Resources | -11 -10 ----------- Run | Yrd Mat Matter Collected 811 | 248 563 Remotely . | . . Salvage Created 606 | . 606 Parts 47 | . 47 Haulers Intercepted . | . . Recyclers Shooed . | . . Parts Field Recycled . | . . Retrieved Matter . | . . Parts Self-Destructed . | . . Prevented . | . . Kills | -11 -10 ------- Run | Yrd Mat Combat Hostiles Destroyed 15 | . 15 Guns 11 | . 11 AOE 4 | . 4 Classes Destroyed 7 | . 7 Worker 1 | . 1 Builder 3 | . 3 Recycler 2 | . 2 Operator 2 | . 2 Watcher 2 | . 2 Swarmer 6 | . 6 Grunt 9 | . 9 Best Kill Streak 5 | . 5 Combat Bots Only 3 | . 3 Max Kills in Single Turn 2 | . 2 Gunslinging . | . . Exploded 2 | . 2 Melee . | . . Uniques/NPCs Destroyed . | . . Combat | -11 -10 -------- Run | Yrd Mat Hostile Shots Fired 151 | . 151 Missed 42 | . 42 Damage Taken 1257 | . 1257 Core 254 | . 254 Absorbed by Shields . | . . Core Remaining (%) 100 | 100 . Volleys Fired 105 | . 105 Largest 2 | . 2 Hottest 50 | . 50 Shots Fired 197 | . 197 Gun 190 | . 190 Cannon . | . . Launcher 7 | . 7 Special . | . . Kinetic 190 | . 190 Thermal . | . . Explosive 7 | . 7 Electromagnetic . | . . Robot Hit Streak 8 | . 8 Robot Miss Streak 4 | . 4 Penetration Max . | . . Secondary Targets . | . . Shots Hit Robots 109 | . 109 Core Hits 41 | . 41 Critical Kills 1 | . 1 Critical Parts Destroyed 1 | . 1 Critical Strikes 2 | . 2 Destroy 2 | . 2 Melee Attacks 13 | . 13 Impact . | . . Slashing . | . . Piercing . | . . Sneak Attacks 9 | . 9 Combat Hostiles . | . . Follow-up Attacks . | . . Damage Inflicted 1538 | . 1538 Guns 1122 | . 1122 Cannons . | . . Explosions 416 | . 416 Melee . | . . Ramming . | . . Kinetic 1122 | . 1122 Thermal . | . . Explosive 416 | . 416 Electromagnetic . | . . Impact . | . . Slashing . | . . Piercing . | . . Highest Corruption 1 | . 1 Average Corruption 1 | . 1 Corruption Purged . | . . Corruption Blocked . | . . Effects 13 | . 13 Message Errors 3 | . 3 Matter Fused 4 | . 4 Heat Flow Errors 3 | . 3 Energy Discharges 2 | . 2 Weapon Failures 1 | . 1 Overload Shots . | . . Overflow Damage 31 | . 31 Projectiles . | . . Explosions 31 | . 31 Melee . | . . Knockbacks . | . . Impact . | . . Kinetic . | . . Secondary . | . . Self-Inflicted Damage 28 | . 28 Shots 2 | . 2 Rammed . | . . Targets Rammed . | . . Kicked . | . . Crushed . | . . Highest Temperature 273 | . 273 Average Temperature 75 | . 75 Received Heat Transfer 510 | . 510 Siege Activations . | . . Robots Corrupted . | . . Combat Hostiles . | . . Parts Fried . | . . Impact Corruptions . | . . Robots Melted . | . . Combat Hostiles . | . . Parts Melted . | . . Heat Transferred . | . . Parts Sabotaged . | . . Parts Stolen . | . . Parts Stripped . | . . Power Chain Reactions . | . . Alert | -11 -10 ------- Run | Yrd Mat Peak Influence 171 | . 171 Initial . | . . Average 52 | . 53 Maximum Alert Level . | . . Low Security (%) 100 | 100 100 Level 1 . | . . Level 2 . | . . Level 3 . | . . Level 4 . | . . Level 5 . | . . High Security . | . . Max Security . | . . Squads Dispatched 5 | . 5 Investigation 3 | . 3 Extermination . | . . Reinforcement 2 | . 2 Assault . | . . Garrison . | . . Intercept . | . . Searches Triggered . | . . Construction Impeded . | . . Haulers Reinforced . | . . Active Scanning Responses . | . . Cargo Convoy Interrupts . | . . Stealth | -11 -10 --------- Run | Yrd Mat Distress Signals 2 | . 2 Communications Jammed . | . . Distress Signals . | . . Times Spotted 42 | . 42 Peak Tracking Total 5 | . 5 Tactical Retreats 2 | . 2 Traps | -11 -10 ------- Run | Yrd Mat Traps Triggered 7 | . 7 Indirectly . | . . Trap Hack Attempts . | . . Triggered . | . . Disarmed . | . . Reprogrammed . | . . Reused . | . . Traps Extracted . | . . Installed . | . . Triggered . | . . Machines | -11 -10 ---------- Run | Yrd Mat Machines Disabled 1 | . 1 Max in Single Turn 1 | . 1 Machines Repaired . | . . Machines Dismantled . | . . Machines Sabotaged . | . . Overloaded Fab Kills . | . . Hacking | -11 -10 --------- Run | Yrd Mat Machines Accessed 6 | . 6 Terminals 5 | . 5 Fabricators . | . . Repair Stations . | . . Recycling Units 1 | . 1 Scanalyzers . | . . Garrison Access . | . . Total Hacks 16 | . 16 Successful 4 | . 4 Failed 12 | . 12 Catastrophic 3 | . 3 Database Lockouts . | . . Manual 9 | . 9 Terminals 13 | . 13 Fabricators . | . . Repair Stations . | . . Recycling Units 3 | . 3 Scanalyzers . | . . Garrison Access . | . . Terminal Hacks . | . . Fabricator Hacks . | . . Repair Station Hacks . | . . Recycling Unit Hacks 3 | . 3 Recycle Component 1 | . 1 Retrieve Matter 2 | . 2 Scanalyzer . | . . Garrison Access Hacks . | . . Unauthorized Hacks 1 | . 1 Terminals 1 | . 1 Botnet 1 | . 1 Fabricators . | . . Repair Stations . | . . Recycling Units . | . . Scanalyzers . | . . Garrison Access . | . . Data Cores Recovered . | . . Used . | . . Hacking Detections 5 | . 5 Full Trace Events 2 | . 2 Feedback Events . | . . Feedback Blocked . | . . Robot Schematics Acquired . | . . Robots Built . | . . Authchips . | . . Time . | . . Total Robot Build Rating . | . . Part Schematics Acquired . | . . Parts Built . | . . Authchips . | . . Time . | . . Total Part Build Rating . | . . Parts Repaired . | . . Time . | . . Parts Recycled 1 | . 1 Recycled Matter . | . . Retrieved Matter . | . . Retrieved Components . | . . Parts Scanalyzed . | . . Part Schematics Acquired . | . . Parts Damaged . | . . Bothacking | -11 -10 ------------ Run | Yrd Mat Used RIF Installer . | . . Robots Hacked 5 | . 5 Non-combat 5 | . 5 Combat . | . . Robot Hacks Applied 7 | . 7 parse_system 3 | . 3 no_distress 3 | . 3 check_alert 1 | . 1 Relay Couplers Released . | . . Fabnet Peak Effective % . | . . Robots Rewired . | . . Allies Hacked . | . . Hacks Repelled . | . . Allies | -11 -10 -------- Run | Yrd Mat Total Allies . | . . Largest Group . | . . Highest-Rated Group . | . . Highest-Rated Ally . | . . Total Orders . | . . Ally Attacks . | . . Total Damage . | . . Kills . | . . Allies Corrupted . | . . Allies Melted . | . . Intel | -11 -10 ------- Run | Yrd Mat Robot Analysis Total . | . . Derelict Logs Recovered . | . . Drone Launches . | . . Drone Recoveries . | . . Exploration | -11 -10 ------------- Run | Yrd Mat Turns Passed 2420 | 48 2372 Spaces Moved 1052 | 36 1016 Core 9 | 9 . Treads . | . . Legs 1043 | 27 1016 Wheels . | . . Hover . | . . Flight . | . . Fastest Speed 50 | 50 120 Average Speed 174 | 102 177 Slowest Speed 260 | 120 260 Overloaded Moves . | . . Propulsion Burnouts . | . . Robots Hopped . | . . Cave-ins Triggered . | . . Exploration Rate (%) 51 | 4 98 Regions Visited 1 Branch Regions . Pre-discovered Areas . | . . Known Exits Taken . | . . Unknown Exits Taken 1 | 1 . Scrap Searched . | . . Spaces Dug . | . . Terrain Destroyed 41 | . 41 Melee . | . . Projectile . | . . AOE 41 | . 41 Terrain Rammed . | . . Walls Destroyed . | . . Machines Disabled . | . . Actions | -11 -10 --------- Run | Yrd Mat Total 1431 | 47 1384 Wait 180 | . 180 Move 1051 | 35 1016 Hop . | . . Pick Up 38 | 6 32 Fast Attach . | . . Attach 21 | 6 15 Detach 3 | . 3 Swap 15 | . 15 Drop 5 | . 5 Fire 105 | . 105 Melee 13 | . 13 Ram . | . . Kick . | . . Crush . | . . Escape Stasis . | . . Rewire . | . . Trap . | . . Miscellaneous . | . . Route ------- -11/Scrapyard -10/Materials (discovered 4 exits: *Mat x3 / *Min) History --------- Turn | Location | Event 5 | -11/Scrapyard | Discovered new exit (range 16) 49 | -11/Scrapyard | Entered Materials 139 | -10/Materials | Discovered new exit (range 3) 318 | -10/Materials | Build established: Mutant 409 | -10/Materials | Lost 3 parts (2p1w) 738 | -10/Materials | Core integrity fell below 50% 1196 | -10/Materials | Discovered new exit (range 10) 1507 | -10/Materials | Discovered new exit (range 9) 1582 | -10/Materials | Build established: Scavenger-Mutant 1621 | -10/Materials | Identified exit to Materials 1964 | -10/Materials | Discovered new exit (range 7) 2041 | -10/Materials | Identified exit to Mines 2129 | -10/Materials | Core integrity fell below 20% 2421 | -10/Materials | Destroyed by G-34 Mercenary with Small Laser Last Messages --------------- 02212_ Acquired Lgt. Assault Rifle. 02213_ Triggered Blade Trap. 02213_ Massive razor-sharp blades shoot up from within the floor. 02213_ Assault Rifle severed. 02216_ Acquired Ion Engine. 02219_ Acquired Assault Rifle. 02244_ Connecting with Repair Station... 02267_ Connecting with Terminal... >>Trojan(Botnet) Trojan loaded successfully. Testing... Terminal linked with 0 systems. Awaiting botnet instructions. 02282_ Connecting with Recycling Unit... >>Recycle(Lgt. Assault Rifle) Accepting Lgt. Assault Rifle... 02282_ ALERT: Suspicious activity at Recycling Unit M002. Dispatching Investigation squad. 02305_ Acquired Datajack. Map ----- +----------------------------------------------------+ | | | | | | | | | | | | | | | | | | | | | | | | | | | #???????????????????????????????????? | | #???????????????###########??######## | | #???????????????# #??# # | | #???????????????# """ #??# """ # | | #???????????????# """"" #??# """ # | | #####???????????# """"" #### """ # | | ############????# """"" # # # | | #########????# """ # # "Y" # | | < # ##????# / + """ # | | # ##????# #g # # | | + ##????###########gg######## | | # ##??????# # #?????? | | # ##??????# """ @ #?????? | | # ######### """ # T #?????? | | #########+######### """ # #?????? | | ####### # ## ######## | | ##????## # """ ## # # | | #?????## # """ ## # """ # | | #?????## #### # """ + # """ # | | #?????## #### # ## + """ # | | #?????## ##?# #""" ## # # | | #?????## ##?# #"R ##^ # # | | #?????## ##?# #""" ##^ # # | | #?????## ##?# # ## # !!!# | | #?????## ##?# ######### # !!!# | | ??????## ##?# #???????# # !!!# | | ??????## ##?# #???????# # # | | ??????## ##?# #???????# # # | | ??????## ##?# #???????# # !# | | ??????## ##?# #???? #?# ######## | | ??????## ##?# #??? #?# #??????? | | ?????###^ #### #?? #?# #??????? | | ####### ### #?? #?# #??????? | | ### #? #?# ######## | | ### ## #?# # # | | ### ## #?# # # | | ####### ## ### #### =#= # | +----------------------------------------------------+ Best States ------------- Heat Dissipation 25 Energy Generation 14 Energy Capacity 250 Matter Stores 288 Matter Capacity 300 Sight Range 16 Terrain Scan Density 10 Evasion (%) 55 Targeting Accuracy 5 Item Schematics ----------------- None Robot Schematics ------------------ None Fabricated ------------ Nothing Alien Tech Used ----------------- None Achievements -------------- None Challenges ------------ None Game ------ Seed FortressBeamRedistributor Manual? 0 Play Time 00:33:32 Cumulative 12.9 hours Start 2024.04.07 @ 13:47:23 End 2024.04.07 @ 14:26:28 Sessions 1 Manual Loads 0 Difficulty Rogue Special Mode None Game No. 12 Rogue 12 Adventurer 0 Explorer 0 Win Type - Total 0 Types 0/0/0/0/0/0/0/0/0 Lore% 5 Gallery% 15 Achievement% 15 Wizard Run 0 Options --------- Layout 1 ASCII 0 Keyboard 0 Movement Mouse Keybinds 0 Fullscreen 2 Font 32/SmallcapsGlow Map View 50x35 Zoom Use 0% Tactical HUD 1 Map Filters NONE Filters NONE Steam 1 RUN: 879debae-89aa-4c3e-9a77-54e66ca92a35